bitfinex-derivatives/quotes_BTCF0:USTF0_20250322
["timestamp","ask_amount","ask_price","bid_price","bid_amount"]
[1742610856683,0.1840752,84253.0,84252.0,0.06334]
[1742610857675,0.1840752,84253.0,84252.0,0.1820766]
[1742610858181,0.1840752,84253.0,84252.0,0.06334]
[1742610859489,0.1840752,84253.0,84252.0,0.1820766]
[1742610862685,0.1840752,84253.0,84252.0,0.1909064]
[1742610863390,0.5448752,84253.0,84252.0,0.1909064]
[1742610869381,0.1840752,84253.0,84252.0,0.1909064]
[1742610869796,0.1522752,84253.0,84252.0,0.1909064]
[1742610871297,0.1203752,84253.0,84252.0,0.1909064]
[1742610872694,0.1530752,84253.0,84252.0,0.1909064]
[1742610873394,0.1847752,84253.0,84252.0,0.1909064]
[1742610878001,0.03434,84253.0,84252.0,0.1909064]
[1742610878195,0.001,84253.0,84252.0,0.1909064]
[1742610878403,0.1197352,84253.0,84252.0,0.1909064]
[1742610878601,0.1204152,84253.0,84252.0,0.1909064]
[1742610878992,0.1512152,84253.0,84252.0,0.1909064]
[1742610879400,0.1204152,84253.0,84252.0,0.1909064]
[1742610882098,0.1510152,84253.0,84252.0,0.1909064]
[1742610882991,0.1812152,84253.0,84252.0,0.1909064]
[1742610888001,0.1510152,84253.0,84252.0,0.1909064]
[1742610888207,0.1503352,84253.0,84252.0,0.1909064]
[1742610888396,0.1509752,84253.0,84252.0,0.1909064]
[1742610888999,0.1812752,84253.0,84252.0,0.1909064]
[1742610902013,0.06254,84253.0,84252.0,0.1909064]
[1742610902215,0.0619,84253.0,84252.0,0.1909064]
[1742610903109,0.06254,84253.0,84252.0,0.1909064]
[1742610903615,0.1812752,84253.0,84252.0,0.1909064]
[1742610904410,0.06254,84253.0,84252.0,0.1909064]
[1742610905412,0.1812752,84253.0,84252.0,0.1909064]
[1742610915016,0.1812752,84253.0,84252.0,0.2412064]
[1742610915317,0.5420752,84253.0,84252.0,0.0094698]
[1742610915518,0.0593698,84250.0,84246.0,0.26464184]
[1742610915822,0.1187436,84247.0,84246.0,0.00064]
[1742610916010,0.1194236,84247.0,84246.0,0.01740433]
[1742610916215,0.2163236,84247.0,84246.0,0.01740433]
[1742610916817,0.2163236,84247.0,84246.0,0.01940433]
[1742610917220,0.2163236,84247.0,84246.0,0.13814943]
[1742610917625,0.2163236,84247.0,84246.0,0.01940433]
[1742610919521,0.2163236,84247.0,84246.0,0.13814943]
[1742610924429,0.2163236,84247.0,84246.0,0.20354943]
[1742610924631,0.1844236,84247.0,84246.0,0.20354943]
[1742610925827,0.06568,84247.0,84246.0,0.31654943]
[1742610926027,8e-05,84248.0,84246.0,0.31654943]
[1742610926028,8e-05,84248.0,84247.0,0.1187436]
[1742610926222,8e-05,84248.0,84247.0,0.1821436]
[1742610926630,0.0307,84250.0,84249.0,0.1187408]
[1742610926830,0.03134,84250.0,84249.0,0.1193408]
[1742610927031,0.03134,84250.0,84249.0,0.2130408]
[1742610928136,0.00064,84250.0,84249.0,0.2130408]
[1742610928637,0.0637,84254.0,84253.0,0.1187352]
[1742610928837,0.1831138,84254.0,84253.0,0.2324152]
[1742610929140,0.1830738,84254.0,84253.0,0.2962152]
[1742610931438,0.06534,84254.0,84253.0,0.2962152]
[1742610932135,0.1840738,84254.0,84253.0,0.2962152]
[1742610935643,0.1840738,84254.0,84253.0,0.1832152]
[1742610935848,0.1840738,84254.0,84253.0,0.2962152]
[1742610960967,0.1840738,84254.0,84253.0,0.1832152]
[1742610961168,0.1840738,84254.0,84253.0,0.2961752]
[1742610961771,0.1840738,84254.0,84253.0,0.1832152]
[1742610961962,0.1840738,84254.0,84253.0,0.2961752]
[1742610962162,0.1840738,84254.0,84253.0,0.2634752]
[1742610962973,0.1840738,84254.0,84253.0,0.2962752]
[1742610963370,0.1840738,84254.0,84253.0,0.2323752]
[1742610964065,0.1840738,84254.0,84253.0,0.2627752]
[1742610964275,0.1840738,84254.0,84253.0,0.1498152]
[1742610964464,0.1840738,84254.0,84253.0,0.2627752]
[1742610964663,0.1840738,84254.0,84253.0,0.2932752]
[1742610973680,0.06534,84254.0,84253.0,0.2932752]
[1742610975772,0.0647,84254.0,84253.0,0.2932752]
[1742610976175,0.06534,84254.0,84253.0,0.2932752]
[1742610978283,0.06542,84254.0,84253.0,0.2932752]
[1742610983079,0.03988964,84270.0,84253.0,0.2932752]
[1742610983080,0.0229489,84270.0,84261.0,0.0593617]
[1742610983282,0.00084,84267.0,84266.0,0.1187169]
[1742610983590,0.1789175,84267.0,84266.0,0.1194369]
[1742610983983,0.1789175,84267.0,84266.0,0.1823369]
[1742610984383,0.1789175,84267.0,84266.0,0.2952969]
[1742610985078,0.0601983,84267.0,84266.0,0.2952969]
[1742610985485,0.00084,84267.0,84266.0,0.2952969]
[1742610985680,0.00384,84267.0,84266.0,0.2952969]
[1742610986088,0.26745736,84271.0,84268.0,0.0593569]
[1742610986282,0.5388312,84288.0,84287.0,0.1186873]
[1742610986476,0.36140001,84288.0,84287.0,0.1186873]
[1742610986680,0.48008591,84288.0,84287.0,0.1196473]
[1742610986882,0.36140001,84288.0,84287.0,0.1515473]
[1742610987285,0.36140001,84288.0,84287.0,0.2645073]
[1742610987690,0.36140001,84288.0,84287.0,0.2963073]
[1742610988286,0.00060001,84288.0,84287.0,0.2963073]
[1742610988495,8e-05,84290.0,84289.0,0.1186845]
[1742610988690,8e-05,84290.0,84289.0,0.1196445]
[1742610988883,8e-05,84290.0,84289.0,0.1837445]
[1742610989088,0.0324,84297.0,84295.0,0.118676]
[1742610989280,0.0324,84296.0,84295.0,0.119636]
[1742610989479,0.06628,84296.0,84295.0,0.119636]
[1742610991091,0.06828,84296.0,84295.0,0.119636]
[1742610991496,0.06828,84296.0,84295.0,0.232556]
[1742610991889,0.10078,84296.0,84295.0,0.232556]
[1742610992490,0.2194546,84296.0,84295.0,0.232556]
[1742610992680,0.10078,84296.0,84295.0,0.232556]
[1742610994097,0.2194546,84296.0,84295.0,0.232556]
[1742610995290,0.2194546,84296.0,84295.0,0.24143814]
[1742611000586,0.2194546,84296.0,84295.0,0.27403814]
[1742611002501,0.2194546,84296.0,84295.0,0.30463814]
[1742611017223,0.2194546,84296.0,84295.0,0.23785176]
[1742611021438,0.2194546,84296.0,84295.0,0.17106575]
[1742611021728,0.2194546,84296.0,84295.0,0.17174575]
[1742611021931,0.2194546,84296.0,84295.0,0.29042175]
[1742611022523,0.2194546,84296.0,84295.0,0.29949178]
[1742611023314,0.2194546,84296.0,84295.0,0.19162603]
[1742611023513,0.2194546,84296.0,84295.0,0.18583003]
[1742611023719,0.2194546,84296.0,84295.0,0.18515003]
[1742611023920,0.2194546,84296.0,84295.0,0.30382603]
[1742611024228,0.2194546,84296.0,84295.0,0.30454603]
[1742611025927,0.2194546,84296.0,84295.0,0.18587003]
[1742611027026,0.2194546,84296.0,84295.0,0.30454603]
[1742611027425,0.2194546,84296.0,84295.0,0.19166603]
[1742611036142,0.2194546,84296.0,84295.0,0.07299003]
[1742611036446,0.2194546,84296.0,84295.0,0.19166603]
[1742611038553,0.2194546,84296.0,84295.0,0.12487712]
[1742611038734,0.2194546,84296.0,84295.0,0.05808821]
[1742611038936,0.2194546,84296.0,84295.0,0.05868821]
[1742611039645,0.2194546,84296.0,84295.0,0.06751985]
[1742611041741,0.0593452,84285.0,84275.0,0.3608]
[1742611041944,0.1186972,84281.0,84280.0,0.2957756]
[1742611042244,0.1186972,84281.0,84280.0,0.2963756]
[1742611042431,0.18495721,84281.0,84280.0,0.2963756]
[1742611043447,0.18495721,84281.0,84280.0,0.0648]
[1742611043747,0.54575721,84281.0,84280.0,0.1828972]
[1742611044046,0.54575721,84281.0,84280.0,0.1834972]
[1742611044836,0.54675721,84281.0,84280.0,0.1834972]
[1742611048744,0.54675721,84281.0,84280.0,0.0648]
[1742611048947,0.54675721,84281.0,84280.0,0.1834972]
[1742611057053,0.54675721,84281.0,84280.0,0.0648]
[1742611059750,0.54675721,84281.0,84280.0,0.02062241]
[1742611060640,0.1186972,84280.0,84279.0,0.00017796]
[1742611060843,0.11957721,84280.0,84279.0,0.00017796]
[1742611061039,0.18237721,84280.0,84279.0,0.00017796]
[1742611061934,0.18237721,84280.0,84279.0,0.00077796]
[1742611062136,0.18237721,84280.0,84279.0,0.00017796]
[1742611063252,0.18237721,84280.0,84279.0,0.00077796]
[1742611063654,0.18237721,84280.0,84279.0,0.00017796]
[1742611064753,0.18237721,84280.0,84275.0,0.0308]
[1742611064754,0.1187155,84267.0,84265.0,0.1487181]
[1742611064955,0.1187155,84267.0,84266.0,0.60953207]
[1742611065156,0.1187155,84267.0,84266.0,0.64083207]
[1742611065456,0.1187155,84267.0,84266.0,0.63995207]
[1742611065955,0.1187155,84267.0,84266.0,0.64295207]
[1742611066349,0.1813155,84267.0,84266.0,0.64295207]
[1742611066857,0.1813155,84267.0,84266.0,0.53007207]
[1742611067047,0.1813155,84267.0,84266.0,0.53307207]
[1742611070653,0.1813155,84267.0,84266.0,0.53371207]
[1742611096271,0.18219551,84267.0,84266.0,0.53371207]
[1742611096474,0.18219551,84267.0,84266.0,0.50241207]
[1742611098074,0.18219551,84267.0,84266.0,0.47161207]
[1742611099967,0.18219551,84267.0,84266.0,0.35289517]
[1742611101177,0.54299551,84267.0,84266.0,0.35289517]
[1742611107685,0.54299551,84267.0,84266.0,0.0229196]
[1742611107872,0.54299551,84267.0,84266.0,0.0222796]
[1742611108268,0.54299551,84267.0,84266.0,0.0075333]
[1742611108581,0.54299551,84267.0,84266.0,0.006]
[1742611109291,0.54299551,84267.0,84266.0,0.00178787]
[1742611110474,0.54299551,84267.0,84266.0,0.01656945]
[1742611111478,0.1187267,84259.0,84258.0,0.00017796]
[1742611111682,0.48048671,84259.0,84258.0,0.00077796]
[1742611111877,0.57528671,84259.0,84258.0,0.01550862]
[1742611112079,0.57528671,84259.0,84258.0,0.00077796]
[1742611112585,0.57528671,84259.0,84258.0,0.03397796]
[1742611112783,0.57528671,84259.0,84258.0,0.06847796]
[1742611112970,0.57528671,84259.0,84258.0,0.07347796]
[1742611114384,0.57528671,84259.0,84258.0,0.08808951]
[1742611115188,0.57528671,84259.0,84258.0,0.05758951]
[1742611115388,0.57528671,84259.0,84258.0,0.05698951]
[1742611115693,0.57528671,84259.0,84258.0,0.05786951]
[1742611120199,0.57528671,84259.0,84258.0,0.08886951]
[1742611127706,0.21448671,84259.0,84258.0,0.08886951]
[1742611127908,0.57528671,84259.0,84258.0,0.08886951]
[1742611139625,0.57528671,84259.0,84258.0,0.05786951]
[1742611139818,0.57528671,84259.0,84258.0,0.05698951]
[1742611140125,0.57528671,84259.0,84258.0,0.05758951]
[1742611140825,0.57528671,84259.0,84258.0,0.02438951]
[1742611141023,0.57528671,84259.0,84258.0,0.00977796]
[1742611141226,0.57528671,84259.0,84258.0,0.00917796]
[1742611141423,0.57528671,84259.0,84258.0,0.00332896]
[1742611142330,0.57528671,84259.0,75919.0,0.01820412]
[1742611142331,0.1187451,84246.0,84244.0,0.38943019]
[1742611142529,0.1187451,84246.0,84245.0,0.2630657]
[1742611142929,0.11962511,84246.0,84245.0,0.2630657]
[1742611143416,0.18402511,84246.0,84245.0,0.3333657]
[1742611143615,0.18402511,84246.0,84245.0,0.34759217]
[1742611143819,0.18402511,84246.0,84245.0,0.34755217]
[1742611144828,0.18502511,84246.0,84245.0,0.35255217]
[1742611145027,0.18502511,84246.0,84245.0,0.3612765]
[1742611148433,0.18502511,84246.0,84245.0,0.2481965]
[1742611148623,0.18502511,84246.0,84245.0,0.3613965]
[1742611160637,0.00288001,84246.0,84245.0,0.3613965]
[1742611160836,0.002,84246.0,84245.0,0.3613965]
[1742611161626,0.033,84251.0,84250.0,0.1187394]
[1742611161841,0.033,84251.0,84250.0,0.1193794]
[1742611162029,0.0324,84258.0,84250.0,0.1193794]
[1742611162030,0.1780784,84265.0,84264.0,0.1187183]
[1742611162335,0.17867841,84265.0,84264.0,0.1193183]
[1742611162726,0.17867841,84265.0,84264.0,0.1515183]
[1742611164432,0.17867841,84265.0,84264.0,0.1545183]
[1742611164629,0.17867841,84265.0,84264.0,0.1575183]
[1742611173146,0.24367841,84265.0,84264.0,0.1575183]
[1742611175632,0.24367841,84265.0,84264.0,0.2711983]
[1742611179847,0.24367841,84265.0,84264.0,0.2711183]
[1742611180449,0.24367841,84265.0,84264.0,0.1575183]
[1742611180651,0.24367841,84265.0,84264.0,0.2710783]
[1742611181850,0.24367841,84265.0,84264.0,0.2388783]
[1742611183642,0.24367841,84265.0,84264.0,0.1253183]
[1742611183943,0.24367841,84265.0,84264.0,0.2391183]
[1742611191063,0.24367841,84265.0,84264.0,0.2720183]
[1742611196067,0.24367841,84265.0,84264.0,0.3024183]
[1742611203776,0.06560001,84265.0,84264.0,0.3024183]
[1742611204376,0.18431831,84265.0,84264.0,0.3024183]
[1742611204979,0.18431831,84265.0,84264.0,0.3024983]
[1742611205177,0.03290001,84265.0,84264.0,0.3024983]
[1742611207785,0.1510183,84265.0,84264.0,0.3024983]
[1742611207987,0.1516583,84265.0,84264.0,0.3024983]
[1742611210184,0.03294,84265.0,84264.0,0.3024983]
[1742611211080,0.0323,84265.0,84264.0,0.3024983]
[1742611211281,0.03294,84265.0,84264.0,0.3024983]
[1742611212290,0.0323,84265.0,84264.0,0.3024983]
[1742611212490,0.03290001,84265.0,84264.0,0.3024983]
[1742611212789,0.0323,84265.0,84264.0,0.3024983]
[1742611213689,0.1510183,84265.0,84264.0,0.3024983]
[1742611213895,0.1516583,84265.0,84264.0,0.3024983]
[1742611215687,0.1844583,84265.0,84264.0,0.3024983]
[1742611215990,0.1844583,84265.0,84264.0,0.3023783]
[1742611216886,0.1844583,84265.0,84264.0,0.3023383]
[1742611217495,0.1844583,84265.0,84264.0,0.1886183]
[1742611217685,0.1844583,84265.0,84264.0,0.3023383]
[1742611218384,0.1844583,84265.0,84264.0,0.1886183]
[1742611218588,0.1844583,84265.0,84264.0,0.3024183]
[1742611219997,0.1844583,84265.0,84264.0,0.1886183]
[1742611220197,0.1844583,84265.0,84264.0,0.3023783]
[1742611224388,0.2164583,84265.0,84264.0,0.2390783]
[1742611224883,0.5772583,84265.0,84264.0,0.12036]
[1742611225698,0.5772583,84265.0,84264.0,0.2390797]
[1742611225885,0.5772583,84265.0,84264.0,0.1253197]
[1742611226291,0.5772583,84265.0,84264.0,0.0066]
[1742611227590,0.5772583,84265.0,84264.0,0.1253197]
[1742611228486,0.5772583,84265.0,84264.0,0.0066]
[1742611229285,0.1187296,84257.0,84256.0,0.00017796]
[1742611229489,0.4795296,84257.0,84256.0,0.00081796]
[1742611229686,0.4804096,84257.0,84256.0,0.00017796]
[1742611229897,0.5776096,84257.0,84256.0,0.00017796]
[1742611230993,0.5776096,84257.0,84256.0,0.00085796]
[1742611231786,0.5776096,84257.0,84256.0,0.00285796]
[1742611232186,0.5776096,84257.0,84256.0,0.00785796]
[1742611233600,0.5776096,84257.0,84256.0,0.00717796]
[1742611234489,0.5776096,84257.0,84256.0,0.00785796]
[1742611234996,0.5776096,84257.0,84256.0,0.00717796]
[1742611235703,0.5776096,84257.0,84256.0,0.00777796]
[1742611236098,0.5776096,84257.0,84256.0,0.12650896]
[1742611236305,0.5776096,84257.0,84256.0,0.00777796]
[1742611237304,0.5776096,84257.0,84256.0,0.12650896]
[1742611237502,0.5776096,84257.0,84256.0,0.12590896]
[1742611238407,0.5776096,84257.0,84256.0,0.12650896]
[1742611238590,0.5776096,84257.0,84256.0,0.15890896]
[1742611240895,0.5776096,84257.0,84256.0,0.19180896]
[1742611241900,0.5776096,84257.0,84256.0,0.15890896]
[1742611242093,0.5458096,84257.0,84256.0,0.15890896]
[1742611242902,0.5458096,84257.0,84256.0,0.19180896]
[1742611244008,0.5458096,84257.0,84256.0,0.15890896]
[1742611245003,0.5458096,84257.0,84256.0,0.19180896]
[1742611246608,0.5458096,84257.0,84256.0,0.15890896]
[1742611247605,0.5458096,84257.0,84256.0,0.19140896]
[1742611252913,0.5445735,84257.0,84256.0,0.19140896]
[1742611253516,0.1837735,84257.0,84256.0,0.19140896]
[1742611255516,0.1837735,84257.0,84256.0,0.07267796]
[1742611255713,0.1837735,84257.0,84256.0,0.04017796]
[1742611255914,0.1837735,84257.0,84256.0,0.15890896]
[1742611256528,0.1837735,84257.0,84256.0,0.19050896]
[1742611257525,0.1837735,84257.0,84256.0,0.04017796]
[1742611258022,0.1837735,84257.0,84256.0,0.00717796]
[1742611258208,0.1837735,84257.0,84256.0,0.00785796]
[1742611263625,0.1837735,84257.0,84256.0,0.12658896]
[1742611263918,0.1837735,84257.0,84256.0,0.18998896]
[1742611264420,0.1837735,84257.0,84256.0,0.07125796]
[1742611265122,0.1837735,84257.0,84256.0,0.18998896]
[1742611288044,0.1837735,84257.0,84256.0,0.12658896]
[1742611288348,0.5445735,84257.0,84256.0,0.05976838]
[1742611288640,0.5445735,84257.0,84256.0,0.06036838]
[1742611288840,0.5445735,84257.0,84256.0,0.09296838]
[1742611289028,0.5445735,84257.0,84256.0,0.0006]
[1742611289341,0.118738,84251.0,84250.0,0.0326]
[1742611289529,0.119738,84251.0,84250.0,0.0332]
[1742611289733,0.214438,84251.0,84250.0,0.0332]
[1742611290737,0.215438,84251.0,84250.0,0.0352]
[1742611291240,0.215438,84251.0,84250.0,0.0026]
[1742611291550,0.216438,84251.0,84250.0,0.0036]
[1742611292139,0.216438,84251.0,84250.0,0.003]
[1742611294238,0.216438,84251.0,84250.0,0.0036]
[1742611295437,0.216438,84251.0,84241.0,0.11316]
[1742611295438,0.0593775,84239.0,84233.0,0.208842]
[1742611295632,0.1781402,84236.0,84235.0,0.1187606]
[1742611295844,0.1791402,84236.0,84235.0,0.1503606]
[1742611296046,0.2123402,84236.0,84235.0,0.1503606]
[1742611296440,0.2113402,84236.0,84235.0,0.1503606]
[1742611296747,0.2113402,84236.0,84235.0,0.16604436]
[1742611296938,0.2419402,84236.0,84235.0,0.19754436]
[1742611297138,0.2429402,84236.0,84235.0,0.19854436]
[1742611297340,0.2429402,84236.0,84235.0,0.20737604]
[1742611297540,0.2439402,84236.0,84235.0,0.08861544]
[1742611298346,0.2449402,84236.0,84235.0,0.08861544]
[1742611298731,0.2449402,84236.0,84235.0,0.20737604]
[1742611303751,0.2449402,84236.0,84235.0,0.07978376]
[1742611304146,0.2449402,84236.0,84235.0,0.04878376]
[1742611305654,0.2439402,84236.0,84235.0,0.16754436]
[1742611306052,0.2429402,84236.0,84235.0,0.19794436]
[1742611313862,0.2429402,84236.0,84235.0,0.23054436]
[1742611314658,0.001,84236.0,84235.0,0.23054436]
[1742611314851,0.118754,84240.0,84239.0,0.1187549]
[1742611315161,0.119754,84240.0,84239.0,0.2966349]
[1742611315361,0.119834,84240.0,84239.0,0.2966349]
[1742611321064,0.151234,84240.0,84239.0,0.2966349]
[1742611326778,0.182034,84240.0,84239.0,0.2966349]
[1742611329671,0.182034,84240.0,84239.0,0.2965549]
[1742611330382,0.182034,84240.0,84239.0,0.1835549]
[1742611330584,0.182034,84240.0,84239.0,0.2965549]
[1742611331284,0.182034,84240.0,84239.0,0.1835549]
[1742611331485,0.182034,84240.0,84239.0,0.2965549]
[1742611333585,0.03248,84240.0,84239.0,0.2965549]
[1742611333786,0.0314,84240.0,84239.0,0.2965549]
[1742611333980,0.1826535,84240.0,84239.0,0.2965549]
[1742611334186,0.1836535,84240.0,84239.0,0.2965549]
[1742611335192,0.0649,84240.0,84239.0,0.2965549]
[1742611335391,0.0639,84240.0,84239.0,0.2965549]
[1742611335684,0.1836535,84240.0,84239.0,0.2965549]
[1742611344393,0.2155535,84240.0,84239.0,0.2965549]
[1742611344593,0.2155535,84240.0,84239.0,0.1835549]
[1742611344793,0.2155535,84240.0,84239.0,0.2965549]
[1742611345401,0.2155535,84240.0,84239.0,0.1835549]
[1742611345699,0.2155535,84240.0,84239.0,0.2965549]
[1742611346796,0.2155535,84240.0,84239.0,0.6573549]
[1742611347907,0.2155535,84240.0,84239.0,0.5443549]
[1742611348107,0.2155535,84240.0,84239.0,0.6573549]
[1742611353606,0.2155535,84240.0,84239.0,0.2965549]
[1742611353909,0.2155535,84240.0,84239.0,0.6573549]
[1742611365217,0.2155535,84240.0,84239.0,0.2965549]
[1742611365517,0.2155535,84240.0,84239.0,0.6573549]
[1742611369221,0.2155535,84240.0,84239.0,0.6260549]
[1742611369914,0.2155535,84240.0,84239.0,0.5931149]
[1742611370516,0.2155535,84240.0,84239.0,0.6245149]
[1742611373515,0.2155535,84240.0,84239.0,0.6564149]
[1742611375522,0.2155535,84240.0,84239.0,0.2956149]
[1742611376328,0.2155535,84240.0,84239.0,0.2637149]
[1742611381224,0.2155535,84240.0,84239.0,0.2956149]
[1742611390235,0.1836535,84240.0,84239.0,0.2956149]
[1742611393029,0.1836535,84240.0,84239.0,0.1826549]
[1742611393226,0.1836535,84240.0,84239.0,0.2956149]
[1742611394027,0.1836535,84240.0,84239.0,0.1826549]
[1742611394228,0.1836535,84240.0,84239.0,0.2956149]
[1742611394837,0.1836535,84240.0,84239.0,0.1826549]
[1742611395036,0.1836535,84240.0,84239.0,0.2956149]
[1742611395627,0.1836535,84240.0,84239.0,0.1826549]
[1742611395827,0.1836535,84240.0,84239.0,0.2956149]
[1742611397933,0.1836535,84240.0,84239.0,0.1826549]
[1742611398235,0.1836535,84240.0,84239.0,0.2956149]
[1742611398737,0.1836535,84240.0,84239.0,0.1826549]
[1742611398927,0.1836535,84240.0,84239.0,0.2956149]
[1742611411038,0.0324,84240.0,84239.0,0.2956149]
[1742611411239,0.1511535,84240.0,84239.0,0.2956149]
[1742611411951,0.1843535,84240.0,84239.0,0.2956149]
[1742611417451,0.1843535,84240.0,84239.0,0.1826549]
[1742611417644,0.1843535,84240.0,84239.0,0.2956149]
[1742611418347,0.1843535,84240.0,84239.0,0.1826549]
[1742611418544,0.1843535,84240.0,84239.0,0.2956149]
[1742611419948,0.1843535,84240.0,84239.0,0.1826549]
[1742611420156,0.1843535,84240.0,84239.0,0.2956149]
[1742611420746,0.1843535,84240.0,84239.0,0.1826549]
[1742611420946,0.1843535,84240.0,84239.0,0.2956149]
[1742611421646,0.1843535,84240.0,84239.0,0.2323149]
[1742611434466,0.1843535,84240.0,84239.0,0.2637149]
[1742611435665,0.1843535,84240.0,84239.0,0.2962149]
[1742611452277,0.1843535,84240.0,84239.0,0.2637149]
[1742611453185,0.1843535,84240.0,84239.0,0.2939149]
[1742611453381,0.1843535,84240.0,84239.0,0.22708454]
[1742611486011,0.1843535,84240.0,84239.0,0.11412454]
[1742611486210,0.1843535,84240.0,84239.0,0.22708454]
[1742611492611,0.1843535,84240.0,84239.0,0.11412454]
[1742611492915,0.1843535,84240.0,84239.0,0.22708454]
[1742611494317,0.1843535,84240.0,84239.0,0.11412454]
[1742611494611,0.1843535,84240.0,84239.0,0.22708454]
[1742611495817,0.0656,84240.0,84239.0,0.22708454]
[1742611496409,0.0646,84240.0,84239.0,0.22708454]
[1742611496610,0.06468,84240.0,84239.0,0.22708454]
[1742611497423,0.1844335,84240.0,84239.0,0.22708454]
[1742611497719,0.0656,84240.0,84239.0,0.22708454]
[1742611497912,0.0646,84240.0,84239.0,0.22708454]
[1742611498113,0.18439351,84240.0,84239.0,0.22708454]
[1742611500318,0.06564001,84240.0,84239.0,0.22708454]
[1742611501516,0.00017807,84244.0,84243.0,0.1187493]
[1742611501719,0.1187297,84258.0,84254.0,0.1187281]
[1742611501922,0.5935093,84277.0,84259.0,0.1187267]
[1742611501923,0.00076,84260.0,84259.0,0.1187267]
[1742611502121,0.00144,84260.0,84259.0,0.1829067]
[1742611502322,0.00076,84260.0,84259.0,0.1829067]
[1742611503223,0.00068,84260.0,84259.0,0.1829067]
[1742611504017,0.1498053,84260.0,84259.0,0.1829067]
[1742611504518,0.1568053,84260.0,84259.0,0.1829067]
[1742611504825,0.1892053,84260.0,84259.0,0.1829067]
[1742611505126,0.1892053,84260.0,84259.0,0.2958267]
[1742611505828,0.1892053,84260.0,84259.0,0.00068]
[1742611506132,0.1187281,84258.0,84257.0,0.11292]
[1742611506323,0.1780986,84255.0,84254.0,0.11292]
[1742611506513,0.1787786,84255.0,84254.0,0.11356]
[1742611507627,0.1827786,84255.0,84254.0,0.11356]
[1742611508921,0.1827786,84255.0,84254.0,0.00064]
[1742611509925,0.1187366,84252.0,84251.0,0.00017807]
[1742611510131,0.1194166,84252.0,84251.0,0.00077807]
[1742611510315,0.1822166,84252.0,84251.0,0.00077807]
[1742611511017,0.1842166,84252.0,84251.0,0.00077807]
[1742611511623,0.1852166,84252.0,84251.0,0.00017807]
[1742611511922,0.1852166,84252.0,84251.0,0.00089807]
[1742611512628,0.1852166,84252.0,84251.0,0.00017807]
[1742611520836,0.5460166,84252.0,84251.0,0.00081807]
[1742611521023,0.5460166,84252.0,84251.0,0.00017807]
[1742611524030,0.5460166,84252.0,84251.0,0.00093807]
[1742611524230,0.5460166,84252.0,84251.0,0.00017807]
[1742611527535,0.5784166,84252.0,84251.0,0.00017807]
[1742611531832,0.5784166,84252.0,84251.0,0.00077807]
[1742611532134,0.5784166,84252.0,84251.0,0.00017807]
[1742611532940,0.5784166,84252.0,84251.0,0.03237807]
[1742611534231,0.5784166,84252.0,84251.0,0.03305807]
[1742611534432,0.5784166,84252.0,84251.0,0.03237807]
[1742611534633,0.5784166,84252.0,84251.0,0.03297807]
[1742611535741,0.5784166,84252.0,84251.0,0.03237807]
[1742611541744,0.4832166,84252.0,84251.0,0.06527807]
[1742611541938,0.4832166,84252.0,84251.0,0.06587807]
[1742611542140,0.5452166,84252.0,84251.0,0.09657807]
[1742611542439,0.5452166,84252.0,84251.0,0.09597807]
[1742611542943,0.5452166,84252.0,84251.0,0.21471607]
[1742611543146,0.5452166,84252.0,84251.0,0.21535607]
[1742611544445,0.5452166,84252.0,84251.0,0.09661807]
[1742611544649,0.5452166,84252.0,84251.0,0.09597807]
[1742611544849,0.5452166,84252.0,84251.0,0.09657807]
[1742611545348,0.5452166,84252.0,84251.0,0.03979984]
[1742611545549,0.5452166,84252.0,84251.0,0.0313]
[1742611547843,0.1844166,84252.0,84251.0,0.0313]
[1742611548053,0.5452166,84252.0,84251.0,0.0313]
[1742611549342,0.5452166,84252.0,84251.0,0.04512577]
[1742611556452,0.1844166,84252.0,84251.0,0.04512577]
[1742611556654,0.5452166,84252.0,84251.0,0.04512577]
[1742611561258,0.5452166,84252.0,84251.0,0.16386377]
[1742611561560,0.5452166,84252.0,84251.0,0.19566377]
[1742611561759,0.5452166,84252.0,84251.0,0.07692577]
[1742611562155,0.5452166,84252.0,84251.0,0.19566377]
[1742611562557,0.5452166,84252.0,84251.0,0.22746377]
[1742611564964,0.5452166,84252.0,84251.0,0.07692577]
[1742611566564,0.5452166,84252.0,84251.0,0.01009967]
[1742611566763,0.5452166,84252.0,84251.0,0.01069967]
[1742611568161,0.5452166,84252.0,84248.0,0.178112]
[1742611568162,0.1187479,84244.0,84243.0,0.11892697]
[1742611568358,0.1187479,84244.0,84243.0,0.00077807]
[1742611568557,0.21598791,84244.0,84243.0,0.00077807]
[1742611569964,0.57678791,84244.0,84243.0,0.00177807]
[1742611570160,0.57678791,84244.0,84243.0,0.00117807]
[1742611570472,0.57678791,84244.0,84243.0,0.00177807]
[1742611571065,0.57678791,84244.0,84243.0,0.01560457]
[1742611571266,0.57678791,84244.0,84243.0,0.00177807]
[1742611571467,0.57678791,84244.0,84243.0,0.00117807]
[1742611571661,0.57678791,84244.0,84243.0,0.00181807]
[1742611571861,0.57678791,84244.0,84243.0,0.00117807]
[1742611572051,0.57678791,84244.0,84243.0,0.00177807]
[1742611573853,0.57678791,84244.0,84243.0,0.01545185]
[1742611575569,0.57678791,84244.0,84243.0,0.01485185]
[1742611577862,0.57678791,84244.0,84243.0,0.01549185]
[1742611579473,0.21598791,84244.0,84243.0,0.00535421]
[1742611579671,0.21598791,84244.0,84243.0,0.00064]
[1742611580060,0.18528791,84244.0,84243.0,0.13289224]
[1742611580268,0.18528791,84244.0,84243.0,0.2157893]
[1742611580269,0.11978791,84244.0,84243.0,0.2157893]
[1742611580468,0.11978791,84244.0,84243.0,0.22908111]
[1742611580664,0.02239864,84260.0,84254.0,0.0593669]
[1742611580863,0.2103958,84259.0,84258.0,0.1187267]
[1742611581175,0.14112434,84260.0,84259.0,0.1187267]
[1742611581373,0.1194457,84260.0,84259.0,0.1194067]
[1742611581869,0.00072,84260.0,84259.0,0.1194067]
[1742611582565,0.1214453,84260.0,84259.0,0.1194067]
[1742611582968,0.1234453,84260.0,84259.0,0.1194067]
[1742611583372,0.1214453,84260.0,84259.0,0.1194067]
[1742611583571,0.1244453,84260.0,84259.0,0.1194067]
[1742611583775,0.1244453,84260.0,84259.0,0.1518067]
[1742611583973,0.1224453,84260.0,84259.0,0.1518067]
[1742611584179,0.1264453,84260.0,84259.0,0.1518067]
[1742611584875,0.1587453,84260.0,84259.0,0.1518067]
[1742611585173,0.1587453,84260.0,84259.0,0.2646867]
[1742611586074,0.1910453,84260.0,84259.0,0.2646867]
[1742611589372,0.1910453,84260.0,84259.0,0.11356]
[1742611589777,0.1910453,84260.0,84259.0,0.2322867]
[1742611591382,0.1910453,84260.0,84259.0,0.2637867]
[1742611592574,0.5518453,84260.0,84259.0,0.2322867]
[1742611592965,0.1910453,84260.0,84259.0,0.2322867]
[1742611594671,0.1910453,84260.0,84259.0,0.2957867]
[1742611596970,0.1910453,84260.0,84259.0,0.2634867]
[1742611597171,0.1910453,84260.0,84259.0,0.14476]
[1742611598279,0.1910453,84260.0,84259.0,0.2634867]